[Event "*** Titled Tuesday Blitz"]
[Site "Chess.com"]
[Date "2020.10.20"]
[Round "5"]
[White "chesstrainer2042"]
[Black "barriochess"]
[Result "0-1"]
[WhiteElo "2438"]
[BlackElo "2296"]
[TimeControl "180+1"]
[EndTime "10:58:01 PDT"]
[Termination "barriochess won on time"]

1. e4 {[%clk 0:03:00.9]} 1... e5 {[%clk 0:02:57.7]} 2. Nf3 {[%clk 0:03:00.8]}
2... Nc6 {[%clk 0:02:57.3]} 3. Bc4 {[%clk 0:03:01.3]} 3... Nf6 {[%clk
0:02:56.5]} 4. d3 {[%clk 0:03:00.8]} 4... Be7 {[%clk 0:02:56.6]} 5. a4 {[%clk
0:02:59]} 5... d6 {[%clk 0:02:53.8]} 6. O-O {[%clk 0:02:57.9]} 6... O-O {[%clk
0:02:52.9]} 7. Re1 {[%clk 0:02:51.2]} 7... Be6 {[%clk 0:02:51.6]} 8. Na3 {[%clk
0:02:48.8]} 8... h6 {[%clk 0:02:35.3]} 9. h3 {[%clk 0:02:46.3]} 9... Re8 {[%clk
0:02:34.8]} 10. Bxe6 {[%clk 0:02:38.4]} 10... fxe6 {[%clk 0:02:34.3]} 11. c3
{[%clk 0:02:39.1]} 11... Bf8 {[%clk 0:02:32.9]} 12. Qb3 {[%clk 0:02:36.8]} 12...
Na5 {[%clk 0:02:29.4]} 13. Qa2 {[%clk 0:02:29.9]} 13... c5 {[%clk 0:02:16.8]}
14. b4 {[%clk 0:02:29.6]} 14... cxb4 {[%clk 0:02:16.6]} 15. cxb4 {[%clk
0:02:29.7]} 15... Nc6 {[%clk 0:02:17.5]} 16. Bd2 {[%clk 0:02:28.4]} 16... Qd7
{[%clk 0:01:48.1]} 17. Nc4 {[%clk 0:02:20.6]} 17... Kh8 {[%clk 0:01:43.5]} 18.
Bc3 {[%clk 0:02:13.4]} 18... Rac8 {[%clk 0:01:36.9]} 19. Qb2 {[%clk 0:02:10.6]}
19... Ne7 {[%clk 0:01:35.6]} 20. Qb3 {[%clk 0:01:52.3]} 20... Ng6 {[%clk
0:01:35.2]} 21. Rad1 {[%clk 0:01:52.1]} 21... Nh5 {[%clk 0:01:26.2]} 22. Bb2
{[%clk 0:01:42.8]} 22... Qf7 {[%clk 0:01:25.2]} 23. d4 {[%clk 0:01:42.5]} 23...
exd4 {[%clk 0:01:23.4]} 24. Rxd4 {[%clk 0:01:35.9]} 24... e5 {[%clk 0:01:17.8]}
25. Rd5 {[%clk 0:01:35.5]} 25... Nhf4 {[%clk 0:01:14.1]} 26. Red1 {[%clk
0:01:33.1]} 26... Nxd5 {[%clk 0:01:12.8]} 27. exd5 {[%clk 0:01:32.7]} 27... Nf4
{[%clk 0:01:07.6]} 28. Ne3 {[%clk 0:01:32.2]} 28... Nxh3+ {[%clk 0:01:06.5]} 29.
Kf1 {[%clk 0:01:31.2]} 29... e4 {[%clk 0:00:59.8]} 30. Ng4 {[%clk 0:01:08.3]}
30... exf3 {[%clk 0:00:54.1]} 31. gxh3 {[%clk 0:01:08.9]} 31... h5 {[%clk
0:00:44]} 32. Nh2 {[%clk 0:01:06.6]} 32... Re4 {[%clk 0:00:38.2]} 33. Nxf3
{[%clk 0:01:04.7]} 33... Rf4 {[%clk 0:00:37.3]} 34. Rd3 {[%clk 0:00:59.1]} 34...
Qf5 {[%clk 0:00:34.3]} 35. Kg2 {[%clk 0:00:54.9]} 35... Re8 {[%clk 0:00:32.6]}
36. Bd4 {[%clk 0:00:25.5]} 36... Qg6+ {[%clk 0:00:27.3]} 37. Kf1 {[%clk
0:00:16.4]} 37... Ree4 {[%clk 0:00:27.2]} 38. Qc3 {[%clk 0:00:14.4]} 38... Qf5
{[%clk 0:00:25.3]} 39. Kg2 {[%clk 0:00:12.7]} 39... Qg6+ {[%clk 0:00:23.3]} 40.
Kf1 {[%clk 0:00:12.4]} 40... Qf7 {[%clk 0:00:23.1]} 41. Kg2 {[%clk 0:00:11.8]}
41... Kg8 {[%clk 0:00:19.3]} 42. Kf1 {[%clk 0:00:08.2]} 42... Rxd4 {[%clk
0:00:16.2]} 43. Nxd4 {[%clk 0:00:06.4]} 43... Rxf2+ {[%clk 0:00:16.4]} 44. Ke1
{[%clk 0:00:06.5]} 44... Rf1+ {[%clk 0:00:16.2]} 45. Kd2 {[%clk 0:00:06.5]}
45... Qf2+ {[%clk 0:00:16.7]} 46. Ne2 {[%clk 0:00:06.4]} 46... g6 {[%clk
0:00:16.8]} 47. Rg3 {[%clk 0:00:04.9]} 47... Bh6+ {[%clk 0:00:16.6]} 48. Kd3
{[%clk 0:00:03.4]} 48... Qf5+ {[%clk 0:00:17.2]} 49. Kc4 {[%clk 0:00:02.4]}
49... Qc8+ {[%clk 0:00:15.7]} 0-1

[Event "*** Titled Tuesday Blitz"]
[Site "Chess.com"]
[Date "2020.10.20"]
[Round "5"]
[White "Gogolev_Artemy"]
[Black "TorFredrikKaasen"]
[Result "1-0"]
[WhiteElo "2525"]
[BlackElo "2691"]
[TimeControl "180+1"]
[EndTime "10:58:02 PDT"]
[Termination "Gogolev_Artemy won on time"]

1. Nf3 {[%clk 0:02:46.3]} 1... d5 {[%clk 0:02:57]} 2. c4 {[%clk 0:02:41.9]} 2...
e6 {[%clk 0:02:57.1]} 3. g3 {[%clk 0:02:37.1]} 3... Nf6 {[%clk 0:02:57.3]} 4.
Bg2 {[%clk 0:02:36.9]} 4... Be7 {[%clk 0:02:57.9]} 5. O-O {[%clk 0:02:34.3]}
5... O-O {[%clk 0:02:58.1]} 6. d4 {[%clk 0:02:27.8]} 6... dxc4 {[%clk
0:02:58.1]} 7. Qc2 {[%clk 0:02:26.9]} 7... a6 {[%clk 0:02:58.6]} 8. Qxc4 {[%clk
0:02:26.5]} 8... b5 {[%clk 0:02:58.4]} 9. Qc2 {[%clk 0:02:27]} 9... Bb7 {[%clk
0:02:58.8]} 10. Bg5 {[%clk 0:02:27.6]} 10... Nbd7 {[%clk 0:02:53.9]} 11. Bxf6
{[%clk 0:02:26.9]} 11... Nxf6 {[%clk 0:02:51.3]} 12. Nbd2 {[%clk 0:02:26.5]}
12... Rc8 {[%clk 0:02:42.7]} 13. Nb3 {[%clk 0:02:23.4]} 13... c5 {[%clk
0:02:42.9]} 14. dxc5 {[%clk 0:02:22.9]} 14... Bd5 {[%clk 0:02:43.2]} 15. Rfd1
{[%clk 0:02:19.7]} 15... Qc7 {[%clk 0:02:42.8]} 16. Rac1 {[%clk 0:02:17.8]}
16... Nd7 {[%clk 0:02:25.5]} 17. c6 {[%clk 0:02:05.8]} 17... Qxc6 {[%clk
0:01:50.5]} 18. Qxc6 {[%clk 0:01:59.5]} 18... Rxc6 {[%clk 0:01:51.4]} 19. Rxc6
{[%clk 0:01:50.1]} 19... Bxc6 {[%clk 0:01:50.3]} 20. Na5 {[%clk 0:01:47.1]}
20... Nb8 {[%clk 0:01:50.7]} 21. Ne5 {[%clk 0:01:22.4]} 21... Bxg2 {[%clk
0:01:48.5]} 22. Kxg2 {[%clk 0:01:23.3]} 22... f6 {[%clk 0:01:40.4]} 23. Nec6
{[%clk 0:01:20.3]} 23... Nxc6 {[%clk 0:01:33.8]} 24. Nxc6 {[%clk 0:01:21.2]}
24... Bc5 {[%clk 0:01:29.2]} 25. Rd7 {[%clk 0:01:11.9]} 25... Rc8 {[%clk
0:01:25.9]} 26. Nd8 {[%clk 0:01:07.1]} 26... e5 {[%clk 0:01:04.8]} 27. Ne6
{[%clk 0:01:06.2]} 27... Bf8 {[%clk 0:01:05.1]} 28. f4 {[%clk 0:00:56.8]} 28...
exf4 {[%clk 0:01:01.8]} 29. gxf4 {[%clk 0:00:57.7]} 29... f5 {[%clk 0:01:00.6]}
30. Kf3 {[%clk 0:00:46.9]} 30... Rc6 {[%clk 0:00:37.9]} 31. Nd4 {[%clk
0:00:35.9]} 31... Rf6 {[%clk 0:00:37.9]} 32. Rc7 {[%clk 0:00:26.5]} 32... g6
{[%clk 0:00:27.8]} 33. b3 {[%clk 0:00:26]} 33... Rd6 {[%clk 0:00:23.2]} 34. e3
{[%clk 0:00:22.6]} 34... Bg7 {[%clk 0:00:20.5]} 35. Nc6 {[%clk 0:00:17]} 35...
Bf6 {[%clk 0:00:20.9]} 36. Ne5 {[%clk 0:00:12.4]} 36... Bxe5 {[%clk 0:00:20.3]}
37. fxe5 {[%clk 0:00:13.1]} 37... Rd2 {[%clk 0:00:15.6]} 38. e6 {[%clk
0:00:12.8]} 38... Kf8 {[%clk 0:00:15.7]} 39. Rxh7 {[%clk 0:00:11.6]} 39... Rxa2
{[%clk 0:00:15.4]} 40. Kf4 {[%clk 0:00:10.8]} 40... Re2 {[%clk 0:00:05.4]} 41.
Ke5 {[%clk 0:00:10.3]} 41... Rxe3+ {[%clk 0:00:05.3]} 42. Kf6 {[%clk 0:00:10.6]}
42... Kg8 {[%clk 0:00:04.4]} 43. Rc7 {[%clk 0:00:10.3]} 43... f4 {[%clk
0:00:03.9]} 44. e7 {[%clk 0:00:09.8]} 44... f3 {[%clk 0:00:02.4]} 45. Rc8+
{[%clk 0:00:08.8]} 45... Kh7 {[%clk 0:00:02.8]} 46. Rc1 {[%clk 0:00:04.6]} 46...
f2 {[%clk 0:00:01.9]} 47. Rf1 {[%clk 0:00:04.8]} 47... Re2 {[%clk 0:00:02.2]}
48. Kf7 {[%clk 0:00:04.8]} 1-0

[Event "*** Titled Tuesday Blitz"]
[Site "Chess.com"]
[Date "2020.10.20"]
[Round "5"]
[White "SergeyKarjakin"]
[Black "Harsha_Bharathakoti"]
[Result "1/2-1/2"]
[WhiteElo "2897"]
[BlackElo "2780"]
[TimeControl "180+1"]
[EndTime "10:58:06 PDT"]
[Termination "Game drawn by agreement"]

1. d4 {[%clk 0:03:00.9]} 1... Nf6 {[%clk 0:02:56.4]} 2. Bf4 {[%clk 0:03:01.5]}
2... d5 {[%clk 0:02:55.8]} 3. e3 {[%clk 0:03:01.9]} 3... e6 {[%clk 0:02:56.5]}
4. Nf3 {[%clk 0:02:58.4]} 4... Bd6 {[%clk 0:02:56.3]} 5. Nbd2 {[%clk 0:02:57.1]}
5... O-O {[%clk 0:02:52.1]} 6. Bd3 {[%clk 0:02:54.9]} 6... b6 {[%clk 0:02:52.3]}
7. Qe2 {[%clk 0:02:41]} 7... Bb7 {[%clk 0:02:35.9]} 8. Bg5 {[%clk 0:02:30.9]}
8... c5 {[%clk 0:02:18.1]} 9. c3 {[%clk 0:02:27]} 9... Nbd7 {[%clk 0:02:15.4]}
10. e4 {[%clk 0:02:12.6]} 10... dxe4 {[%clk 0:01:53.9]} 11. Nxe4 {[%clk
0:02:12]} 11... Be7 {[%clk 0:01:54.3]} 12. h4 {[%clk 0:01:53]} 12... cxd4 {[%clk
0:01:40.7]} 13. Nxd4 {[%clk 0:01:52.7]} 13... Nxe4 {[%clk 0:01:34.5]} 14. Bxe4
{[%clk 0:01:50.9]} 14... Bxe4 {[%clk 0:01:34.2]} 15. Qxe4 {[%clk 0:01:51.8]}
15... Nc5 {[%clk 0:01:33.2]} 16. Qc2 {[%clk 0:01:44.6]} 16... Qc7 {[%clk
0:01:07.6]} 17. O-O-O {[%clk 0:01:41]} 17... h6 {[%clk 0:00:44.6]} 18. Be3
{[%clk 0:01:14.9]} 18... Qb7 {[%clk 0:00:29.2]} 19. g4 {[%clk 0:01:13.4]} 19...
Rac8 {[%clk 0:00:15.7]} 20. g5 {[%clk 0:01:08.7]} 20... h5 {[%clk 0:00:15.8]}
21. g6 {[%clk 0:01:09]} 21... Bf6 {[%clk 0:00:08.5]} 22. gxf7+ {[%clk
0:01:02.7]} 22... Rxf7 {[%clk 0:00:08]} 23. Kb1 {[%clk 0:00:53.6]} 23... b5
{[%clk 0:00:08.2]} 24. Qe2 {[%clk 0:00:27.3]} 24... b4 {[%clk 0:00:05.9]} 25. c4
{[%clk 0:00:27.2]} 25... Qe4+ {[%clk 0:00:04.9]} 26. Qc2 {[%clk 0:00:23.2]}
26... Bxd4 {[%clk 0:00:02.2]} 27. Bxd4 {[%clk 0:00:21.8]} 27... Qxc2+ {[%clk
0:00:01.7]} 28. Kxc2 {[%clk 0:00:22.7]} 28... Ne4 {[%clk 0:00:02.2]} 29. Kb3
{[%clk 0:00:19.5]} 29... Nxf2 {[%clk 0:00:02.3]} 30. Bxf2 {[%clk 0:00:19]} 30...
Rxf2 {[%clk 0:00:03.2]} 31. Rd7 {[%clk 0:00:18.7]} 31... Rf3+ {[%clk 0:00:03.5]}
32. Kxb4 {[%clk 0:00:15.3]} 32... Rb8+ {[%clk 0:00:03.9]} 33. Kc5 {[%clk
0:00:15.6]} 33... Rxb2 {[%clk 0:00:03.6]} 34. Rxa7 {[%clk 0:00:15.6]} 34... Rf5+
{[%clk 0:00:02.8]} 35. Kd6 {[%clk 0:00:15]} 35... Rd2+ {[%clk 0:00:02.6]} 36.
Kc6 {[%clk 0:00:12.9]} 36... Rc2 {[%clk 0:00:02.3]} 37. Ra4 {[%clk 0:00:11.6]}
37... Rf4 {[%clk 0:00:02.7]} 38. Kb5 {[%clk 0:00:10.4]} 38... Rb2+ {[%clk
0:00:02.4]} 39. Kc5 {[%clk 0:00:10.4]} 39... Rc2 {[%clk 0:00:02.3]} 40. Kb5
{[%clk 0:00:06.7]} 40... Rb2+ {[%clk 0:00:02.3]} 41. Kc6 {[%clk 0:00:05.9]}
41... Rc2 {[%clk 0:00:02.7]} 42. Kd6 {[%clk 0:00:04.7]} 42... Rfxc4 {[%clk
0:00:02.4]} 43. Rxc4 {[%clk 0:00:04.4]} 43... Rxc4 {[%clk 0:00:03.3]} 44. Kxe6
{[%clk 0:00:05]} 44... Ra4 {[%clk 0:00:03.9]} 45. Rh2 {[%clk 0:00:04.7]} 45...
Kh7 {[%clk 0:00:02.9]} 46. Kd5 {[%clk 0:00:05.3]} 46... Kg6 {[%clk 0:00:02.3]}
47. Kc5 {[%clk 0:00:05.4]} 47... Kf5 {[%clk 0:00:03]} 48. Kb5 {[%clk 0:00:05.9]}
48... Ra3 {[%clk 0:00:03.6]} 49. Rg2 {[%clk 0:00:05.8]} 49... g6 {[%clk
0:00:02.5]} 50. Rh2 {[%clk 0:00:05.4]} 50... g5 {[%clk 0:00:02.5]} 51. hxg5
{[%clk 0:00:04.5]} 51... Kxg5 {[%clk 0:00:03.4]} 52. Kb4 {[%clk 0:00:03.5]}
1/2-1/2

[Event "*** Titled Tuesday Blitz"]
[Site "Chess.com"]
[Date "2020.10.20"]
[Round "5"]
[White "AustrianFalcon"]
[Black "Ty3oB"]
[Result "1-0"]
[WhiteElo "2447"]
[BlackElo "2237"]
[TimeControl "180+1"]
[EndTime "10:58:08 PDT"]
[Termination "AustrianFalcon won by resignation"]

1. f4 {[%clk 0:03:00.9]} 1... d5 {[%clk 0:02:58.5]} 2. Nf3 {[%clk 0:02:59.2]}
2... Nf6 {[%clk 0:02:58.3]} 3. g3 {[%clk 0:02:56]} 3... e6 {[%clk 0:02:57.6]} 4.
Bg2 {[%clk 0:02:56.1]} 4... c5 {[%clk 0:02:58.1]} 5. O-O {[%clk 0:02:55.5]} 5...
Nc6 {[%clk 0:02:58.5]} 6. d3 {[%clk 0:02:54.3]} 6... Bd6 {[%clk 0:02:57.2]} 7.
Nc3 {[%clk 0:02:52.3]} 7... d4 {[%clk 0:02:57.5]} 8. Nb5 {[%clk 0:02:47.5]} 8...
Be7 {[%clk 0:02:55.2]} 9. e4 {[%clk 0:02:42.4]} 9... dxe3 {[%clk 0:02:53.2]} 10.
Bxe3 {[%clk 0:02:41.7]} 10... Nd5 {[%clk 0:02:37]} 11. Bf2 {[%clk 0:02:36.1]}
11... O-O {[%clk 0:02:35.1]} 12. Qe2 {[%clk 0:02:32.6]} 12... a6 {[%clk
0:02:00.7]} 13. Nc3 {[%clk 0:02:31.8]} 13... b6 {[%clk 0:01:56]} 14. Ne5 {[%clk
0:02:26.7]} 14... Bb7 {[%clk 0:01:52.4]} 15. Nxd5 {[%clk 0:02:05.5]} 15... exd5
{[%clk 0:01:51.8]} 16. Rae1 {[%clk 0:02:06.1]} 16... Bf6 {[%clk 0:01:51]} 17. c3
{[%clk 0:02:05.1]} 17... Qc7 {[%clk 0:01:01.9]} 18. Bxd5 {[%clk 0:01:57.5]}
18... Nxe5 {[%clk 0:00:52.6]} 19. Bxb7 {[%clk 0:01:55.5]} 19... Qxb7 {[%clk
0:00:41.4]} 20. fxe5 {[%clk 0:01:55.1]} 20... Rae8 {[%clk 0:00:39.2]} 21. d4
{[%clk 0:01:55.3]} 21... Bg5 {[%clk 0:00:35.6]} 22. h4 {[%clk 0:01:51.9]} 22...
Be7 {[%clk 0:00:33.4]} 23. Qe4 {[%clk 0:01:41.6]} 23... Qd7 {[%clk 0:00:30.7]}
24. e6 {[%clk 0:01:40.6]} 24... Qc7 {[%clk 0:00:21.8]} 25. d5 {[%clk 0:01:37.8]}
25... Bd6 {[%clk 0:00:20]} 26. Kg2 {[%clk 0:01:34.9]} 26... fxe6 {[%clk
0:00:20.4]} 27. dxe6 {[%clk 0:01:35.8]} 27... Re7 {[%clk 0:00:21.1]} 28. Re3
{[%clk 0:01:34.1]} 28... Rfe8 {[%clk 0:00:21.6]} 29. Rfe1 {[%clk 0:01:33.8]}
29... Qc8 {[%clk 0:00:22.2]} 30. Qd5 {[%clk 0:01:33.3]} 30... Qc7 {[%clk
0:00:21.8]} 31. Rf3 {[%clk 0:01:32.5]} 31... h6 {[%clk 0:00:19.2]} 32. Rf7
{[%clk 0:01:32]} 32... Kh8 {[%clk 0:00:15]} 33. Rxe7 {[%clk 0:01:31.7]} 33...
Qxe7 {[%clk 0:00:15.9]} 34. Re3 {[%clk 0:01:29.4]} 34... Kh7 {[%clk 0:00:15.4]}
35. Qf5+ {[%clk 0:01:28]} 35... Kh8 {[%clk 0:00:15]} 36. Qf7 {[%clk 0:01:25]}
36... b5 {[%clk 0:00:11.9]} 37. Qxe7 {[%clk 0:01:24.6]} 37... Rxe7 {[%clk
0:00:12.8]} 38. Kf3 {[%clk 0:01:23.7]} 38... Kh7 {[%clk 0:00:12.5]} 39. h5
{[%clk 0:01:23.9]} 39... g6 {[%clk 0:00:12.9]} 40. g4 {[%clk 0:01:22.5]} 40...
gxh5 {[%clk 0:00:13.2]} 41. gxh5 {[%clk 0:01:23.4]} 41... Kg7 {[%clk 0:00:14.1]}
42. Bh4 {[%clk 0:01:23.4]} 42... Re8 {[%clk 0:00:14.4]} 43. Kg4 {[%clk
0:01:22.8]} 43... c4 {[%clk 0:00:12.7]} 44. e7 {[%clk 0:01:20]} 44... Kf7 {[%clk
0:00:12.5]} 45. Kf5 {[%clk 0:01:18.5]} 45... a5 {[%clk 0:00:11.6]} 46. Re6
{[%clk 0:01:16.7]} 46... Bxe7 {[%clk 0:00:10.3]} 47. Rxe7+ {[%clk 0:01:16.7]}
47... Rxe7 {[%clk 0:00:11.2]} 48. Bxe7 {[%clk 0:01:17.1]} 48... Kxe7 {[%clk
0:00:12.1]} 49. Kg6 {[%clk 0:01:15.9]} 49... Ke6 {[%clk 0:00:12.6]} 50. Kxh6
{[%clk 0:01:16]} 50... Kf6 {[%clk 0:00:12.9]} 51. Kh7 {[%clk 0:01:15]} 51... b4
{[%clk 0:00:09.1]} 52. a3 {[%clk 0:00:44.5]} 52... bxa3 {[%clk 0:00:05.3]} 53.
bxa3 {[%clk 0:00:45.4]} 53... Kf7 {[%clk 0:00:05.4]} 54. a4 {[%clk 0:00:35]}
54... Kf6 {[%clk 0:00:03.5]} 55. Kg8 {[%clk 0:00:20.6]} 55... Kg5 {[%clk
0:00:03.4]} 56. Kf7 {[%clk 0:00:20.9]} 56... Kxh5 {[%clk 0:00:03.7]} 57. Ke6
{[%clk 0:00:21.3]} 57... Kg4 {[%clk 0:00:04]} 58. Kd5 {[%clk 0:00:22]} 58... Kf3
{[%clk 0:00:04.4]} 59. Kxc4 {[%clk 0:00:22.6]} 1-0

[Event "*** Titled Tuesday Blitz"]
[Site "Chess.com"]
[Date "2020.10.20"]
[Round "5"]
[White "elohunter1999"]
[Black "MalyDominator"]
[Result "1/2-1/2"]
[WhiteElo "2524"]
[BlackElo "2376"]
[TimeControl "180+1"]
[EndTime "10:58:09 PDT"]
[Termination "Game drawn - insufficient material"]

1. e4 {[%clk 0:03:00.9]} 1... c5 {[%clk 0:02:59.7]} 2. Nf3 {[%clk 0:02:58.9]}
2... Nc6 {[%clk 0:02:57.7]} 3. d4 {[%clk 0:02:59.1]} 3... cxd4 {[%clk
0:02:58.6]} 4. Nxd4 {[%clk 0:02:59.4]} 4... Nf6 {[%clk 0:02:59]} 5. Nc3 {[%clk
0:02:57.7]} 5... d6 {[%clk 0:02:59.4]} 6. Bg5 {[%clk 0:02:55.6]} 6... e6 {[%clk
0:02:59.5]} 7. Qd2 {[%clk 0:02:55.5]} 7... a6 {[%clk 0:02:59.7]} 8. O-O-O {[%clk
0:02:55.1]} 8... Bd7 {[%clk 0:02:59.9]} 9. f4 {[%clk 0:02:55.3]} 9... b5 {[%clk
0:03:00.1]} 10. Bxf6 {[%clk 0:02:54.5]} 10... gxf6 {[%clk 0:03:01]} 11. Kb1
{[%clk 0:02:54.8]} 11... b4 {[%clk 0:03:00.3]} 12. Nce2 {[%clk 0:02:43.6]} 12...
Qb6 {[%clk 0:03:00.2]} 13. Nxc6 {[%clk 0:02:36]} 13... Bxc6 {[%clk 0:02:51]} 14.
f5 {[%clk 0:02:33.1]} 14... e5 {[%clk 0:02:41.8]} 15. Ng3 {[%clk 0:02:30.8]}
15... h5 {[%clk 0:02:39.4]} 16. h4 {[%clk 0:02:29.3]} 16... Qc5 {[%clk
0:02:32.3]} 17. Bd3 {[%clk 0:02:28.5]} 17... Bh6 {[%clk 0:02:22.2]} 18. Qe2
{[%clk 0:02:25.2]} 18... Ke7 {[%clk 0:02:21.6]} 19. Nxh5 {[%clk 0:02:15.8]}
19... Qe3 {[%clk 0:02:20.3]} 20. Qf1 {[%clk 0:02:09.3]} 20... Bxe4 {[%clk
0:02:19.7]} 21. Rh3 {[%clk 0:02:00.7]} 21... Bxd3 {[%clk 0:02:19.6]} 22. Rxd3
{[%clk 0:01:59.8]} 22... Qc1+ {[%clk 0:02:19.6]} 23. Qxc1 {[%clk 0:01:58]} 23...
Bxc1 {[%clk 0:02:20.5]} 24. Nxf6 {[%clk 0:01:55.6]} 24... Kxf6 {[%clk
0:02:17.5]} 25. Kxc1 {[%clk 0:01:55]} 25... Kxf5 {[%clk 0:02:15.1]} 26. Rxd6
{[%clk 0:01:52.8]} 26... Rag8 {[%clk 0:01:55.6]} 27. Rf3+ {[%clk 0:01:28]} 27...
Ke4 {[%clk 0:01:41.7]} 28. Rxf7 {[%clk 0:01:27.8]} 28... Rxg2 {[%clk 0:01:39.5]}
29. b3 {[%clk 0:01:28.2]} 29... Rxh4 {[%clk 0:01:33.3]} 30. Rxa6 {[%clk
0:01:22.4]} 30... Rhh2 {[%clk 0:01:32.1]} 31. Rc7 {[%clk 0:01:21.7]} 31... Ke3
{[%clk 0:01:25.7]} 32. Rb6 {[%clk 0:01:17.1]} 32... Rh4 {[%clk 0:01:17]} 33. Re7
{[%clk 0:01:10.1]} 33... Rg5 {[%clk 0:01:10.8]} 34. Rb5 {[%clk 0:01:06.3]} 34...
Re4 {[%clk 0:01:03.6]} 35. Reb7 {[%clk 0:01:05.3]} 35... Rgg4 {[%clk 0:00:57.2]}
36. Kb2 {[%clk 0:01:03.3]} 36... Kf3 {[%clk 0:00:41.1]} 37. Re7 {[%clk
0:00:55.6]} 37... Rg5 {[%clk 0:00:38.4]} 38. Rh7 {[%clk 0:00:42.4]} 38... Reg4
{[%clk 0:00:22.9]} 39. Rhb7 {[%clk 0:00:38.9]} 39... e4 {[%clk 0:00:23]} 40.
Rxb4 {[%clk 0:00:27.9]} 40... e3 {[%clk 0:00:21.6]} 41. Rf7+ {[%clk 0:00:27.6]}
41... Kg2 {[%clk 0:00:16.3]} 42. Rxg4+ {[%clk 0:00:25.3]} 42... Rxg4 {[%clk
0:00:17.2]} 43. Re7 {[%clk 0:00:25.3]} 43... Kf2 {[%clk 0:00:17.4]} 44. a4
{[%clk 0:00:23.5]} 44... e2 {[%clk 0:00:17.2]} 45. a5 {[%clk 0:00:19.7]} 45...
e1=Q {[%clk 0:00:13.8]} 46. Rxe1 {[%clk 0:00:19.6]} 46... Kxe1 {[%clk
0:00:14.7]} 47. Kc3 {[%clk 0:00:20.5]} 47... Kd1 {[%clk 0:00:13.1]} 48. b4
{[%clk 0:00:20.6]} 48... Rg2 {[%clk 0:00:12.9]} 49. Kc4 {[%clk 0:00:20.8]} 49...
Rxc2+ {[%clk 0:00:13]} 50. Kb5 {[%clk 0:00:19.9]} 50... Kd2 {[%clk 0:00:13]} 51.
a6 {[%clk 0:00:19.9]} 51... Kc3 {[%clk 0:00:12.6]} 52. a7 {[%clk 0:00:15.2]}
52... Ra2 {[%clk 0:00:12.6]} 53. Kb6 {[%clk 0:00:15.6]} 53... Kxb4 {[%clk
0:00:12.4]} 54. Kb7 {[%clk 0:00:15.6]} 54... Kb5 {[%clk 0:00:07.3]} 55. a8=Q
{[%clk 0:00:15.5]} 55... Rxa8 {[%clk 0:00:07.8]} 56. Kxa8 {[%clk 0:00:16.4]}
1/2-1/2

[Event "*** Titled Tuesday Blitz"]
[Site "Chess.com"]
[Date "2020.10.20"]
[Round "5"]
[White "akanga001"]
[Black "cstevens1"]
[Result "0-1"]
[WhiteElo "1878"]
[BlackElo "2661"]
[TimeControl "180+1"]
[EndTime "10:58:10 PDT"]
[Termination "cstevens1 won by resignation"]

1. d4 {[%clk 0:03:00.9]} 1... d5 {[%clk 0:02:02.5]} 2. c4 {[%clk 0:02:59.7]}
2... e6 {[%clk 0:02:02.5]} 3. Nc3 {[%clk 0:02:58.6]} 3... dxc4 {[%clk
0:02:02.5]} 4. e4 {[%clk 0:02:57.2]} 4... c5 {[%clk 0:02:02.5]} 5. d5 {[%clk
0:02:54.6]} 5... exd5 {[%clk 0:02:02.5]} 6. exd5 {[%clk 0:02:53.8]} 6... Bd6
{[%clk 0:02:01.7]} 7. Bxc4 {[%clk 0:02:53.5]} 7... Nf6 {[%clk 0:02:01.7]} 8.
Nge2 {[%clk 0:02:51.3]} 8... O-O {[%clk 0:02:01.7]} 9. Bg5 {[%clk 0:02:47.5]}
9... a6 {[%clk 0:02:01.1]} 10. a4 {[%clk 0:02:46.1]} 10... Bf5 {[%clk
0:02:00.7]} 11. Qd2 {[%clk 0:02:34.9]} 11... Re8 {[%clk 0:01:58.9]} 12. O-O
{[%clk 0:02:34.2]} 12... Nbd7 {[%clk 0:01:49.2]} 13. Ng3 {[%clk 0:02:33.4]}
13... Bg6 {[%clk 0:01:49.3]} 14. Rae1 {[%clk 0:02:25.4]} 14... Qc7 {[%clk
0:01:45.6]} 15. Rxe8+ {[%clk 0:02:05.2]} 15... Rxe8 {[%clk 0:01:44.9]} 16. Re1
{[%clk 0:02:05.3]} 16... Rxe1+ {[%clk 0:01:40.2]} 17. Qxe1 {[%clk 0:02:05.8]}
17... h6 {[%clk 0:01:41]} 18. Bd2 {[%clk 0:02:00.7]} 18... Ne5 {[%clk
0:01:39.4]} 19. Bf1 {[%clk 0:01:59.2]} 19... Nd3 {[%clk 0:01:38.9]} 20. Bxd3
{[%clk 0:01:57.9]} 20... Bxd3 {[%clk 0:01:39.8]} 21. Qe3 {[%clk 0:01:53.5]}
21... c4 {[%clk 0:01:38.6]} 22. Qf3 {[%clk 0:01:45]} 22... Be5 {[%clk 0:01:29]}
23. Nd1 {[%clk 0:01:33.6]} 23... b5 {[%clk 0:01:22.2]} 24. axb5 {[%clk
0:01:32.1]} 24... axb5 {[%clk 0:01:23.1]} 25. Bc3 {[%clk 0:01:31.7]} 25... Qe7
{[%clk 0:01:23]} 26. Bxe5 {[%clk 0:01:24.7]} 26... Qxe5 {[%clk 0:01:23.1]} 27.
Qe3 {[%clk 0:01:07.4]} 27... Qxe3 {[%clk 0:00:45.3]} 28. Nxe3 {[%clk 0:01:05.3]}
28... b4 {[%clk 0:00:45.5]} 29. Ngf1 {[%clk 0:00:47]} 29... c3 {[%clk
0:00:44.4]} 30. bxc3 {[%clk 0:00:43.7]} 30... bxc3 {[%clk 0:00:44.3]} 31. d6
{[%clk 0:00:34.1]} 31... c2 {[%clk 0:00:43.5]} 32. Nxc2 {[%clk 0:00:32.7]} 32...
Bxc2 {[%clk 0:00:44.2]} 33. Ne3 {[%clk 0:00:32.7]} 33... Ba4 {[%clk 0:00:44.1]}
34. Kf1 {[%clk 0:00:32.5]} 34... Ne4 {[%clk 0:00:42]} 35. Ke2 {[%clk 0:00:33.4]}
35... Nxd6 {[%clk 0:00:41.8]} 36. Kd3 {[%clk 0:00:33]} 36... Kf8 {[%clk
0:00:38.7]} 37. Kd4 {[%clk 0:00:32.5]} 37... Ke7 {[%clk 0:00:38.3]} 38. Kd5
{[%clk 0:00:32.7]} 38... Bd7 {[%clk 0:00:34.2]} 39. f4 {[%clk 0:00:32.5]} 39...
Be6+ {[%clk 0:00:31.4]} 40. Ke5 {[%clk 0:00:32.5]} 40... Nc4+ {[%clk 0:00:31.5]}
41. Nxc4 {[%clk 0:00:28.6]} 41... Bxc4 {[%clk 0:00:32.4]} 42. g4 {[%clk
0:00:27.9]} 42... Be2 {[%clk 0:00:26.9]} 43. h3 {[%clk 0:00:20]} 43... Bf1
{[%clk 0:00:26.4]} 44. h4 {[%clk 0:00:19.4]} 44... Be2 {[%clk 0:00:25.5]} 45. g5
{[%clk 0:00:19.5]} 45... h5 {[%clk 0:00:25.5]} 46. f5 {[%clk 0:00:19.5]} 46...
f6+ {[%clk 0:00:23.6]} 47. Kf4 {[%clk 0:00:18.9]} 47... Bg4 {[%clk 0:00:23.1]}
48. g6 {[%clk 0:00:15.3]} 48... Kd6 {[%clk 0:00:23]} 49. Ke4 {[%clk 0:00:14.8]}
49... Kc5 {[%clk 0:00:23.2]} 50. Kf4 {[%clk 0:00:15.7]} 50... Kd5 {[%clk
0:00:22.7]} 51. Ke3 {[%clk 0:00:12.4]} 51... Bxf5 {[%clk 0:00:22.2]} 52. Kf2
{[%clk 0:00:13.3]} 52... Bxg6 {[%clk 0:00:22.8]} 53. Kg3 {[%clk 0:00:14.2]}
53... Ke5 {[%clk 0:00:23.6]} 54. Kf3 {[%clk 0:00:13.7]} 54... Be8 {[%clk
0:00:24.5]} 55. Kg3 {[%clk 0:00:14.6]} 55... g5 {[%clk 0:00:25.2]} 56. hxg5
{[%clk 0:00:14.1]} 56... fxg5 {[%clk 0:00:26.1]} 57. Kh3 {[%clk 0:00:13.8]}
57... Kf5 {[%clk 0:00:27]} 58. Kh2 {[%clk 0:00:14.3]} 58... h4 {[%clk
0:00:27.6]} 59. Kg1 {[%clk 0:00:15]} 59... Kf4 {[%clk 0:00:28]} 60. Kh1 {[%clk
0:00:15.9]} 60... Kg3 {[%clk 0:00:28]} 61. Kg1 {[%clk 0:00:14.2]} 61... Bc6
{[%clk 0:00:27.6]} 62. Kf1 {[%clk 0:00:13.3]} 62... h3 {[%clk 0:00:28.2]} 63.
Kg1 {[%clk 0:00:13.2]} 63... h2+ {[%clk 0:00:29.1]} 0-1